[Event "Early-Titled-Tuesday-Blitz-February-27-2024"]
[Site "Chess.com"]
[Date "2024.02.27"]
[Round "9"]
[White "Canal_Showdrez"]
[Black "regenda"]
[Result "0-1"]
[WhiteElo "1999"]
[BlackElo "2251"]
[TimeControl "180+1"]
[EndTime "9:44:47 PST"]
[Termination "regenda won by resignation"]

1. d4 {[%clk 0:01:57.8]} 1... c5 {[%clk 0:02:58.1]} 2. d5 {[%clk 0:01:54.6]}
2... e5 {[%clk 0:02:57.8]} 3. e4 {[%clk 0:01:51.3]} 3... Be7 {[%clk 0:02:55]} 4.
c4 {[%clk 0:01:51.3]} 4... d6 {[%clk 0:02:55]} 5. Nc3 {[%clk 0:01:50.9]} 5...
Nd7 {[%clk 0:02:55.1]} 6. f4 {[%clk 0:01:50.4]} 6... Bf6 {[%clk 0:02:54.1]} 7.
Nf3 {[%clk 0:01:48.6]} 7... Ne7 {[%clk 0:02:53.4]} 8. Bd3 {[%clk 0:01:46.1]}
8... O-O {[%clk 0:02:52.1]} 9. O-O {[%clk 0:01:36.2]} 9... a6 {[%clk 0:02:46.6]}
10. a4 {[%clk 0:01:31.1]} 10... Re8 {[%clk 0:02:31.9]} 11. f5 {[%clk 0:01:30.7]}
11... h6 {[%clk 0:02:27.6]} 12. g4 {[%clk 0:01:30.4]} 12... Nf8 {[%clk
0:02:24.3]} 13. h4 {[%clk 0:01:23.6]} 13... g5 {[%clk 0:02:21.9]} 14. hxg5
{[%clk 0:01:21.3]} 14... Bxg5 {[%clk 0:02:21.1]} 15. Nxg5 {[%clk 0:01:19.5]}
15... hxg5 {[%clk 0:02:22]} 16. Bxg5 {[%clk 0:01:18.8]} 16... Nh7 {[%clk
0:02:22.6]} 17. Bh6 {[%clk 0:01:15.2]} 17... f6 {[%clk 0:02:21.4]} 18. Qf3
{[%clk 0:01:05.9]} 18... Kh8 {[%clk 0:02:16.6]} 19. Kf2 {[%clk 0:01:00.3]} 19...
Ng8 {[%clk 0:02:16.4]} 20. Rh1 {[%clk 0:00:53.4]} 20... Nxh6 {[%clk 0:02:13.3]}
21. Rxh6 {[%clk 0:00:53]} 21... Kg7 {[%clk 0:02:14]} 22. Rah1 {[%clk 0:00:50.8]}
22... Ng5 {[%clk 0:02:13.6]} 23. Rg6+ {[%clk 0:00:50.4]} 23... Kf7 {[%clk
0:02:11.1]} 24. Qg2 {[%clk 0:00:38.6]} 24... Rh8 {[%clk 0:02:10.4]} 25. Rh2
{[%clk 0:00:23]} 25... Bd7 {[%clk 0:02:05.5]} 26. Qh1 {[%clk 0:00:22.9]} 26...
Rxh2+ {[%clk 0:01:57.2]} 27. Qxh2 {[%clk 0:00:23.8]} 27... Qh8 {[%clk
0:01:57.4]} 28. Rh6 {[%clk 0:00:24]} 28... Qg7 {[%clk 0:01:51]} 29. Ne2 {[%clk
0:00:20.5]} 29... Bxa4 {[%clk 0:01:47]} 30. Ng3 {[%clk 0:00:19]} 30... Bd1
{[%clk 0:01:39.2]} 31. Qh5+ {[%clk 0:00:19.6]} 31... Ke7 {[%clk 0:01:31.9]} 32.
Rg6 {[%clk 0:00:20.1]} 32... Qh8 {[%clk 0:01:29.6]} 33. Rxg5 {[%clk 0:00:18.6]}
33... fxg5 {[%clk 0:01:25.6]} 34. Qxg5+ {[%clk 0:00:19.5]} 34... Qf6 {[%clk
0:01:23]} 35. Qh5 {[%clk 0:00:15]} 35... Rh8 {[%clk 0:01:20.4]} 36. g5 {[%clk
0:00:15.1]} 36... Bxh5 {[%clk 0:01:14.9]} 37. gxf6+ {[%clk 0:00:14.8]} 37...
Kxf6 {[%clk 0:01:15.8]} 38. Be2 {[%clk 0:00:09.6]} 38... Bxe2 {[%clk 0:01:15.3]}
39. Nxe2 {[%clk 0:00:10.5]} 39... b5 {[%clk 0:01:11.7]} 40. cxb5 {[%clk
0:00:10]} 40... axb5 {[%clk 0:01:12.6]} 41. Kf3 {[%clk 0:00:09.9]} 41... b4
{[%clk 0:01:05.5]} 42. Ng3 {[%clk 0:00:09.8]} 42... c4 {[%clk 0:01:04.6]} 43.
Kg4 {[%clk 0:00:09.2]} 43... c3 {[%clk 0:01:01.6]} 44. bxc3 {[%clk 0:00:10.1]}
44... bxc3 {[%clk 0:01:02.4]} 45. Ne2 {[%clk 0:00:09.4]} 45... c2 {[%clk
0:01:01.4]} 46. Kf3 {[%clk 0:00:09.6]} 46... Rh3+ {[%clk 0:01:00.5]} 47. Kf2
{[%clk 0:00:09.8]} 47... Rh2+ {[%clk 0:01:00.8]} 48. Ke1 {[%clk 0:00:09.2]}
48... Rxe2+ {[%clk 0:01:01.7]} 49. Kxe2 {[%clk 0:00:09.6]} 49... c1=Q {[%clk
0:01:02.2]} 0-1

[Event "Early-Titled-Tuesday-Blitz-February-27-2024"]
[Site "Chess.com"]
[Date "2024.02.27"]
[Round "9"]
[White "Tashik"]
[Black "nindjaxx8"]
[Result "0-1"]
[WhiteElo "2497"]
[BlackElo "2653"]
[TimeControl "180+1"]
[EndTime "9:44:48 PST"]
[Termination "nindjaxx8 won on time"]

1. c4 {[%clk 0:03:00.9]} 1... e6 {[%clk 0:02:59.6]} 2. Nf3 {[%clk 0:02:59.9]}
2... d5 {[%clk 0:02:59.5]} 3. g3 {[%clk 0:03:00.5]} 3... Nf6 {[%clk 0:02:59.5]}
4. Bg2 {[%clk 0:03:01.1]} 4... Be7 {[%clk 0:02:57.8]} 5. O-O {[%clk 0:03:01.6]}
5... O-O {[%clk 0:02:56.9]} 6. b3 {[%clk 0:03:02.1]} 6... b6 {[%clk 0:02:54.8]}
7. Bb2 {[%clk 0:03:01.5]} 7... Bb7 {[%clk 0:02:54.2]} 8. cxd5 {[%clk 0:02:56.6]}
8... exd5 {[%clk 0:02:50.1]} 9. d4 {[%clk 0:02:53.8]} 9... Nbd7 {[%clk
0:02:49.8]} 10. Nc3 {[%clk 0:02:51]} 10... c6 {[%clk 0:02:47.2]} 11. Ne5 {[%clk
0:02:42.2]} 11... Bd6 {[%clk 0:02:38]} 12. f4 {[%clk 0:02:26.5]} 12... Qe7
{[%clk 0:02:36.9]} 13. e3 {[%clk 0:02:20.8]} 13... Rfd8 {[%clk 0:02:30.2]} 14.
Kh1 {[%clk 0:02:18.4]} 14... c5 {[%clk 0:02:29.4]} 15. g4 {[%clk 0:01:45]} 15...
cxd4 {[%clk 0:02:24.5]} 16. exd4 {[%clk 0:01:44.4]} 16... Ne4 {[%clk 0:02:24.1]}
17. Nxe4 {[%clk 0:01:38.4]} 17... dxe4 {[%clk 0:02:22.7]} 18. Qe2 {[%clk
0:01:31.2]} 18... f5 {[%clk 0:01:23.9]} 19. gxf5 {[%clk 0:01:15.6]} 19... Nf6
{[%clk 0:01:23.4]} 20. Rac1 {[%clk 0:00:55.1]} 20... Rac8 {[%clk 0:01:12.4]} 21.
Rxc8 {[%clk 0:00:38.5]} 21... Rxc8 {[%clk 0:01:13.3]} 22. Rc1 {[%clk 0:00:38.4]}
22... Rf8 {[%clk 0:01:08.3]} 23. Kg1 {[%clk 0:00:16.5]} 23... Ba8 {[%clk
0:00:53.1]} 24. a3 {[%clk 0:00:16]} 24... Nd5 {[%clk 0:00:40.3]} 25. Qxe4 {[%clk
0:00:09.7]} 25... Bxa3 {[%clk 0:00:39.1]} 26. Nc6 {[%clk 0:00:04.4]} 26... Bxc6
{[%clk 0:00:04.1]} 0-1

[Event "Early-Titled-Tuesday-Blitz-February-27-2024"]
[Site "Chess.com"]
[Date "2024.02.27"]
[Round "9"]
[White "nekotyanof"]
[Black "Zhigalko_Sergei"]
[Result "0-1"]
[WhiteElo "2637"]
[BlackElo "2899"]
[TimeControl "180+1"]
[EndTime "9:44:50 PST"]
[Termination "Zhigalko_Sergei won by resignation"]

1. e4 {[%clk 0:02:55.2]} 1... c5 {[%clk 0:03:00.1]} 2. Nf3 {[%clk 0:02:55.2]}
2... Nc6 {[%clk 0:02:59.9]} 3. Bb5 {[%clk 0:02:55]} 3... Nf6 {[%clk 0:02:59.4]}
4. Bxc6 {[%clk 0:02:53]} 4... dxc6 {[%clk 0:02:59.7]} 5. d3 {[%clk 0:02:53.7]}
5... Bg4 {[%clk 0:02:58.9]} 6. h3 {[%clk 0:02:53.4]} 6... Bh5 {[%clk 0:02:59.3]}
7. g4 {[%clk 0:02:50.8]} 7... Bg6 {[%clk 0:02:59.4]} 8. Be3 {[%clk 0:02:35.9]}
8... c4 {[%clk 0:02:53.7]} 9. O-O {[%clk 0:02:30.9]} 9... e6 {[%clk 0:02:35.5]}
10. Nc3 {[%clk 0:02:29.5]} 10... Be7 {[%clk 0:02:21.2]} 11. g5 {[%clk
0:02:16.3]} 11... Nh5 {[%clk 0:02:12.7]} 12. dxc4 {[%clk 0:02:16.1]} 12... Qc7
{[%clk 0:02:12.9]} 13. Nh4 {[%clk 0:01:58.2]} 13... O-O {[%clk 0:01:41.5]} 14.
Qg4 {[%clk 0:01:51.2]} 14... f5 {[%clk 0:01:33.5]} 15. gxf6 {[%clk 0:01:50.9]}
15... Nxf6 {[%clk 0:01:32.7]} 16. Qg2 {[%clk 0:01:43.3]} 16... Bf7 {[%clk
0:01:18.4]} 17. Rad1 {[%clk 0:01:35.9]} 17... Nh5 {[%clk 0:01:09.5]} 18. Qg4
{[%clk 0:01:33]} 18... Bf6 {[%clk 0:00:36.8]} 19. f4 {[%clk 0:01:23.3]} 19...
Bxc3 {[%clk 0:00:32.2]} 20. bxc3 {[%clk 0:01:24.2]} 20... Nf6 {[%clk 0:00:32.5]}
21. Qg2 {[%clk 0:01:23.2]} 21... c5 {[%clk 0:00:23.4]} 22. e5 {[%clk 0:01:22.3]}
22... Nh5 {[%clk 0:00:21.5]} 23. Rd6 {[%clk 0:01:20.9]} 23... Rad8 {[%clk
0:00:17.7]} 24. Rfd1 {[%clk 0:01:21]} 24... b6 {[%clk 0:00:12.5]} 25. Nf3 {[%clk
0:01:16.2]} 25... Bg6 {[%clk 0:00:08.6]} 26. Qg5 {[%clk 0:01:09.1]} 26... Rde8
{[%clk 0:00:03.5]} 27. Nh4 {[%clk 0:01:08]} 27... Qb7 {[%clk 0:00:02.1]} 28.
Nxg6 {[%clk 0:00:33.4]} 28... hxg6 {[%clk 0:00:03]} 29. Qxg6 {[%clk 0:00:34.3]}
29... Qf3 {[%clk 0:00:03.6]} 30. R1d3 {[%clk 0:00:34.7]} 30... Nxf4 {[%clk
0:00:03.1]} 31. Rd7 {[%clk 0:00:20.5]} 31... Nxg6 {[%clk 0:00:02.3]} 0-1

[Event "Early-Titled-Tuesday-Blitz-February-27-2024"]
[Site "Chess.com"]
[Date "2024.02.27"]
[Round "9"]
[White "BilicVladimir"]
[Black "Shuvalov"]
[Result "1-0"]
[WhiteElo "2695"]
[BlackElo "2514"]
[TimeControl "180+1"]
[EndTime "9:44:51 PST"]
[Termination "BilicVladimir won on time"]

1. e4 {[%clk 0:03:00.9]} 1... e6 {[%clk 0:03:00.2]} 2. d4 {[%clk 0:03:00.3]}
2... d5 {[%clk 0:03:00.8]} 3. Nd2 {[%clk 0:03:01]} 3... c5 {[%clk 0:03:00.1]} 4.
dxc5 {[%clk 0:03:00.4]} 4... Bxc5 {[%clk 0:02:59.2]} 5. Nb3 {[%clk 0:02:59.3]}
5... Bb6 {[%clk 0:02:52.5]} 6. exd5 {[%clk 0:02:59.4]} 6... exd5 {[%clk
0:02:52.5]} 7. Bb5+ {[%clk 0:02:59]} 7... Nc6 {[%clk 0:02:51.5]} 8. Qe2+ {[%clk
0:02:58.7]} 8... Ne7 {[%clk 0:02:47.9]} 9. Be3 {[%clk 0:02:58.7]} 9... O-O
{[%clk 0:02:45.2]} 10. Bxb6 {[%clk 0:02:57.4]} 10... Qxb6 {[%clk 0:02:38.2]} 11.
O-O-O {[%clk 0:02:56.5]} 11... Bg4 {[%clk 0:02:05.1]} 12. Qxg4 {[%clk
0:02:53.7]} 12... Qxb5 {[%clk 0:02:04.9]} 13. Nf3 {[%clk 0:02:51.7]} 13... Rac8
{[%clk 0:01:57.6]} 14. Rhe1 {[%clk 0:02:42.9]} 14... Ng6 {[%clk 0:01:53.8]} 15.
Nfd4 {[%clk 0:02:36.1]} 15... Qa4 {[%clk 0:01:49]} 16. a3 {[%clk 0:02:12.1]}
16... Nce5 {[%clk 0:01:30.9]} 17. Qg3 {[%clk 0:01:59.6]} 17... Nc4 {[%clk
0:01:27.2]} 18. Kb1 {[%clk 0:01:56.3]} 18... Rfe8 {[%clk 0:01:20.8]} 19. h4
{[%clk 0:01:46.2]} 19... h5 {[%clk 0:01:05.3]} 20. Rxe8+ {[%clk 0:01:44.7]}
20... Rxe8 {[%clk 0:01:04.7]} 21. Qc7 {[%clk 0:01:38.9]} 21... Qa6 {[%clk
0:00:51]} 22. g3 {[%clk 0:01:35.3]} 22... Nge5 {[%clk 0:00:41.4]} 23. Re1 {[%clk
0:01:19.2]} 23... Qd6 {[%clk 0:00:27.9]} 24. Qxb7 {[%clk 0:01:02.5]} 24... Rb8
{[%clk 0:00:25.4]} 25. Qxa7 {[%clk 0:01:01]} 25... g6 {[%clk 0:00:20.7]} 26. Qc5
{[%clk 0:00:55.2]} 26... Qf6 {[%clk 0:00:15.9]} 27. Qxd5 {[%clk 0:00:50.6]}
27... Qxf2 {[%clk 0:00:13.3]} 28. Rxe5 {[%clk 0:00:50.3]} 28... Nxe5 {[%clk
0:00:09.7]} 29. Qxe5 {[%clk 0:00:50]} 29... Rd8 {[%clk 0:00:09.9]} 30. a4 {[%clk
0:00:48]} 30... Ra8 {[%clk 0:00:05.2]} 31. a5 {[%clk 0:00:46.8]} 31... Qf1+
{[%clk 0:00:05.1]} 32. Ka2 {[%clk 0:00:45.9]} 32... Qc4 {[%clk 0:00:05.8]} 33.
Qb5 {[%clk 0:00:36.7]} 33... Qc8 {[%clk 0:00:02.5]} 34. Nc6 {[%clk 0:00:31.9]}
34... Ra6 {[%clk 0:00:02]} 35. Ne7+ {[%clk 0:00:31]} 1-0

[Event "Early-Titled-Tuesday-Blitz-February-27-2024"]
[Site "Chess.com"]
[Date "2024.02.27"]
[Round "9"]
[White "MightyGMpretender"]
[Black "Roman_Ovetchkin"]
[Result "1-0"]
[WhiteElo "2777"]
[BlackElo "2596"]
[TimeControl "180+1"]
[EndTime "9:44:53 PST"]
[Termination "MightyGMpretender won by checkmate"]

1. Nf3 {[%clk 0:03:00.9]} 1... Nf6 {[%clk 0:02:58.1]} 2. c4 {[%clk 0:03:01]}
2... c5 {[%clk 0:02:55.6]} 3. Nc3 {[%clk 0:02:58.6]} 3... d5 {[%clk 0:02:55.1]}
4. cxd5 {[%clk 0:02:58.6]} 4... Nxd5 {[%clk 0:02:55.9]} 5. e3 {[%clk 0:02:59.5]}
5... g6 {[%clk 0:02:53.4]} 6. Bb5+ {[%clk 0:02:53.9]} 6... Bd7 {[%clk
0:02:50.4]} 7. Bc4 {[%clk 0:02:53.9]} 7... Nb6 {[%clk 0:02:45.8]} 8. Bb3 {[%clk
0:02:50.9]} 8... c4 {[%clk 0:02:37]} 9. Bc2 {[%clk 0:02:50.3]} 9... Bg7 {[%clk
0:02:36.5]} 10. O-O {[%clk 0:02:45.4]} 10... O-O {[%clk 0:02:35.7]} 11. b3
{[%clk 0:02:43.4]} 11... Nc6 {[%clk 0:02:27.4]} 12. Ba3 {[%clk 0:02:40.7]} 12...
Bg4 {[%clk 0:02:15.7]} 13. Be4 {[%clk 0:02:36.3]} 13... Ne5 {[%clk 0:01:34.7]}
14. Rc1 {[%clk 0:02:14.4]} 14... cxb3 {[%clk 0:01:25.4]} 15. axb3 {[%clk
0:02:10]} 15... Qd7 {[%clk 0:01:01.2]} 16. d4 {[%clk 0:02:06.4]} 16... Nxf3+
{[%clk 0:00:59.5]} 17. Bxf3 {[%clk 0:02:06.9]} 17... Bxf3 {[%clk 0:00:59.2]} 18.
Qxf3 {[%clk 0:02:07.6]} 18... Rfe8 {[%clk 0:00:53.3]} 19. Ne4 {[%clk 0:02:07.3]}
19... Qd5 {[%clk 0:00:52.7]} 20. Nc5 {[%clk 0:02:03.2]} 20... Qxf3 {[%clk
0:00:52.6]} 21. gxf3 {[%clk 0:02:03.6]} 21... Rab8 {[%clk 0:00:53]} 22. f4
{[%clk 0:02:02.1]} 22... Nd5 {[%clk 0:00:51.7]} 23. Rc2 {[%clk 0:01:55.7]} 23...
a5 {[%clk 0:00:51.7]} 24. Rfc1 {[%clk 0:01:55]} 24... b6 {[%clk 0:00:46.5]} 25.
Nd3 {[%clk 0:01:50.5]} 25... e6 {[%clk 0:00:44.9]} 26. Bd6 {[%clk 0:01:45]}
26... Ra8 {[%clk 0:00:44]} 27. Rc6 {[%clk 0:01:40]} 27... b5 {[%clk 0:00:33]}
28. Ra1 {[%clk 0:01:37.8]} 28... Bf8 {[%clk 0:00:28.9]} 29. Bxf8 {[%clk
0:01:37.2]} 29... Kxf8 {[%clk 0:00:28.6]} 30. Rc5 {[%clk 0:01:37.5]} 30... Reb8
{[%clk 0:00:28.2]} 31. Ne5 {[%clk 0:01:38.1]} 31... Rb7 {[%clk 0:00:28.1]} 32.
Nc6 {[%clk 0:01:34.2]} 32... a4 {[%clk 0:00:28.2]} 33. bxa4 {[%clk 0:01:31.3]}
33... bxa4 {[%clk 0:00:28.3]} 34. Na5 {[%clk 0:01:24.9]} 34... Rb4 {[%clk
0:00:25.8]} 35. Nc6 {[%clk 0:01:18.6]} 35... Rb2 {[%clk 0:00:24]} 36. Ra3 {[%clk
0:01:18.2]} 36... Nf6 {[%clk 0:00:20.6]} 37. Rc1 {[%clk 0:01:06]} 37... Ne4
{[%clk 0:00:19.7]} 38. Rf1 {[%clk 0:01:06.7]} 38... Nd2 {[%clk 0:00:19.3]} 39.
Rfa1 {[%clk 0:01:06.4]} 39... Ne4 {[%clk 0:00:17.4]} 40. Rxa4 {[%clk 0:00:54.9]}
40... Rxa4 {[%clk 0:00:16]} 41. Rxa4 {[%clk 0:00:55.8]} 41... Nxf2 {[%clk
0:00:15.3]} 42. Ra7 {[%clk 0:00:47.3]} 42... f6 {[%clk 0:00:12.3]} 43. Nd8
{[%clk 0:00:44.8]} 43... Ng4 {[%clk 0:00:12.1]} 44. Nxe6+ {[%clk 0:00:45.3]}
44... Ke8 {[%clk 0:00:11.9]} 45. d5 {[%clk 0:00:42.7]} 45... Nxe3 {[%clk
0:00:09.6]} 46. d6 {[%clk 0:00:39.2]} 46... Rd2 {[%clk 0:00:09.6]} 47. Re7#
{[%clk 0:00:38.5]} 1-0

[Event "Early-Titled-Tuesday-Blitz-February-27-2024"]
[Site "Chess.com"]
[Date "2024.02.27"]
[Round "9"]
[White "Sam_ChessMood"]
[Black "ValentinDragnev"]
[Result "1-0"]
[WhiteElo "2946"]
[BlackElo "2734"]
[TimeControl "180+1"]
[EndTime "9:44:54 PST"]
[Termination "Sam_ChessMood won on time"]

1. d4 {[%clk 0:02:59.7]} 1... d5 {[%clk 0:02:58]} 2. c4 {[%clk 0:02:59.8]} 2...
e6 {[%clk 0:02:58.6]} 3. Nf3 {[%clk 0:02:59.8]} 3... a6 {[%clk 0:02:57.2]} 4.
cxd5 {[%clk 0:02:58.1]} 4... exd5 {[%clk 0:02:58.1]} 5. Nc3 {[%clk 0:02:58.2]}
5... c6 {[%clk 0:02:57.6]} 6. e4 {[%clk 0:02:52.8]} 6... dxe4 {[%clk 0:02:54.9]}
7. Ng5 {[%clk 0:02:52.8]} 7... Be7 {[%clk 0:02:30.7]} 8. Bc4 {[%clk 0:02:13.5]}
8... Nh6 {[%clk 0:02:12]} 9. Ngxe4 {[%clk 0:01:56.8]} 9... Nf5 {[%clk
0:02:10.1]} 10. d5 {[%clk 0:01:50.6]} 10... O-O {[%clk 0:02:06.7]} 11. O-O
{[%clk 0:01:50.3]} 11... b5 {[%clk 0:02:04.8]} 12. Bb3 {[%clk 0:01:47.1]} 12...
Bb7 {[%clk 0:01:57.9]} 13. Bf4 {[%clk 0:01:43.1]} 13... Nd7 {[%clk 0:01:29.7]}
14. Qg4 {[%clk 0:01:19.1]} 14... Nd4 {[%clk 0:01:21.1]} 15. Bh6 {[%clk
0:01:08.2]} 15... Bf6 {[%clk 0:01:06.7]} 16. Rad1 {[%clk 0:00:38.7]} 16... Nxb3
{[%clk 0:00:50.8]} 17. axb3 {[%clk 0:00:39.6]} 17... Ne5 {[%clk 0:00:46.2]} 18.
Qf5 {[%clk 0:00:38.9]} 18... Nd7 {[%clk 0:00:13.6]} 19. Nxf6+ {[%clk 0:00:24.4]}
19... Qxf6 {[%clk 0:00:06.7]} 20. Qxd7 {[%clk 0:00:24.4]} 20... Bc8 {[%clk
0:00:05.7]} 21. Qxc6 {[%clk 0:00:21]} 21... Qxh6 {[%clk 0:00:05.1]} 22. d6
{[%clk 0:00:17.3]} 22... Be6 {[%clk 0:00:04]} 23. Nd5 {[%clk 0:00:17.2]} 23...
Rad8 {[%clk 0:00:01.2]} 24. Rd3 {[%clk 0:00:13.5]} 24... Kh8 {[%clk 0:00:01.1]}
25. Ne3 {[%clk 0:00:09.8]} 25... Rc8 {[%clk 0:00:01.2]} 26. Qxa6 {[%clk
0:00:09.3]} 26... Rfd8 {[%clk 0:00:01.6]} 27. Rfd1 {[%clk 0:00:08.9]} 27... Qf4
{[%clk 0:00:01.4]} 28. d7 {[%clk 0:00:05.7]} 1-0

[Event "Early-Titled-Tuesday-Blitz-February-27-2024"]
[Site "Chess.com"]
[Date "2024.02.27"]
[Round "9"]
[White "Batica1984"]
[Black "Russian_berezka"]
[Result "1-0"]
[WhiteElo "2756"]
[BlackElo "2587"]
[TimeControl "180+1"]
[EndTime "9:44:54 PST"]
[Termination "Batica1984 won by resignation"]

1. e4 {[%clk 0:03:00.9]} 1... c5 {[%clk 0:02:56.7]} 2. d4 {[%clk 0:02:59.5]}
2... cxd4 {[%clk 0:02:56.4]} 3. Qxd4 {[%clk 0:02:59]} 3... Nc6 {[%clk
0:02:54.4]} 4. Qd3 {[%clk 0:02:58.9]} 4... g6 {[%clk 0:02:51.1]} 5. Nc3 {[%clk
0:02:58.5]} 5... Bg7 {[%clk 0:02:50.9]} 6. Nf3 {[%clk 0:02:59.2]} 6... d6 {[%clk
0:02:49]} 7. Be2 {[%clk 0:02:59.7]} 7... Nf6 {[%clk 0:02:48.8]} 8. O-O {[%clk
0:03:00.3]} 8... O-O {[%clk 0:02:47.6]} 9. Nd5 {[%clk 0:03:00.9]} 9... Nd7
{[%clk 0:02:47.3]} 10. c3 {[%clk 0:03:00]} 10... Nc5 {[%clk 0:02:40.9]} 11. Qc2
{[%clk 0:03:00]} 11... e6 {[%clk 0:02:38]} 12. Nf4 {[%clk 0:02:59.7]} 12... Qc7
{[%clk 0:02:32.8]} 13. Rd1 {[%clk 0:02:52.5]} 13... a5 {[%clk 0:02:27.7]} 14.
Be3 {[%clk 0:02:51.2]} 14... b6 {[%clk 0:02:26.7]} 15. Nd4 {[%clk 0:02:49.3]}
15... Rd8 {[%clk 0:02:20.7]} 16. Nb5 {[%clk 0:02:48.5]} 16... Qb8 {[%clk
0:02:20.7]} 17. Rd2 {[%clk 0:02:24.1]} 17... Bb7 {[%clk 0:02:11.8]} 18. Rad1
{[%clk 0:02:23.1]} 18... Bf8 {[%clk 0:02:09.4]} 19. Nh3 {[%clk 0:02:14.2]} 19...
Ne5 {[%clk 0:02:02]} 20. f3 {[%clk 0:02:13.8]} 20... Bc6 {[%clk 0:01:59.8]} 21.
Bg5 {[%clk 0:02:12.7]} 21... Rd7 {[%clk 0:01:53.4]} 22. Nd4 {[%clk 0:02:12.2]}
22... Bb7 {[%clk 0:01:49.5]} 23. Nf2 {[%clk 0:02:12.2]} 23... a4 {[%clk
0:01:41.4]} 24. Bb5 {[%clk 0:02:05.5]} 24... Rc7 {[%clk 0:01:39.5]} 25. f4
{[%clk 0:01:59.4]} 25... Nc6 {[%clk 0:01:35.9]} 26. Bxc6 {[%clk 0:01:57.9]}
26... Bxc6 {[%clk 0:01:36.8]} 27. f5 {[%clk 0:01:54.9]} 27... exf5 {[%clk
0:01:31.6]} 28. exf5 {[%clk 0:01:54.4]} 28... Qb7 {[%clk 0:01:23.6]} 29. Nxc6
{[%clk 0:01:50.8]} 29... Qxc6 {[%clk 0:01:23]} 30. Ng4 {[%clk 0:01:51.1]} 30...
h5 {[%clk 0:00:37.5]} 31. Nf6+ {[%clk 0:01:48.5]} 31... Kg7 {[%clk 0:00:37.9]}
32. Nd5 {[%clk 0:01:47.2]} 32... Rca7 {[%clk 0:00:37]} 33. Bf6+ {[%clk
0:01:46.1]} 33... Kh7 {[%clk 0:00:36.4]} 34. fxg6+ {[%clk 0:01:45.6]} 34... fxg6
{[%clk 0:00:36.4]} 35. Rf2 {[%clk 0:01:41]} 35... Rf7 {[%clk 0:00:32.4]} 36. c4
{[%clk 0:01:25.3]} 36... Qc8 {[%clk 0:00:23.2]} 37. Rdf1 {[%clk 0:01:22.8]}
37... Qe6 {[%clk 0:00:18.3]} 38. Bd4 {[%clk 0:01:21.7]} 38... Rxf2 {[%clk
0:00:17.8]} 39. Rxf2 {[%clk 0:01:20.7]} 39... Bg7 {[%clk 0:00:15.1]} 40. Bxg7
{[%clk 0:01:13.6]} 40... Kxg7 {[%clk 0:00:16]} 41. Qc3+ {[%clk 0:01:09.7]} 41...
Qe5 {[%clk 0:00:16]} 42. Qxe5+ {[%clk 0:01:08.2]} 42... dxe5 {[%clk 0:00:16.2]}
43. Nxb6 {[%clk 0:01:08.8]} 43... Rb8 {[%clk 0:00:13]} 44. Nd5 {[%clk
0:01:08.7]} 44... Nd3 {[%clk 0:00:11.2]} 45. Rc2 {[%clk 0:01:04.8]} 45... Nxb2
{[%clk 0:00:05.2]} 46. c5 {[%clk 0:01:04.8]} 46... Nd3 {[%clk 0:00:05.8]} 47. h4
{[%clk 0:01:03.3]} 47... Nb4 {[%clk 0:00:05.4]} 48. Rb2 {[%clk 0:01:02.4]} 48...
Rc8 {[%clk 0:00:03.7]} 49. Rxb4 {[%clk 0:01:02]} 49... Rxc5 {[%clk 0:00:04.4]}
50. Rb7+ {[%clk 0:01:01.6]} 50... Kf8 {[%clk 0:00:03.7]} 51. Ne7 {[%clk
0:00:59.4]} 51... Rc4 {[%clk 0:00:04.3]} 52. Nxg6+ {[%clk 0:00:59.2]} 52... Ke8
{[%clk 0:00:04.8]} 53. Nxe5 {[%clk 0:00:59.4]} 53... Kd8 {[%clk 0:00:05.5]} 54.
Nxc4 {[%clk 0:00:59.3]} 1-0

[Event "Early-Titled-Tuesday-Blitz-February-27-2024"]
[Site "Chess.com"]
[Date "2024.02.27"]
[Round "9"]
[White "db-banana"]
[Black "AcostaPablo"]
[Result "0-1"]
[WhiteElo "2491"]
[BlackElo "2623"]
[TimeControl "180+1"]
[EndTime "9:44:55 PST"]
[Termination "AcostaPablo won by checkmate"]

1. e4 {[%clk 0:03:00.8]} 1... e6 {[%clk 0:02:53.2]} 2. d4 {[%clk 0:02:58.1]}
2... d5 {[%clk 0:02:54.1]} 3. exd5 {[%clk 0:02:57.4]} 3... exd5 {[%clk
0:02:53.9]} 4. Bd3 {[%clk 0:02:58.1]} 4... Nf6 {[%clk 0:02:53.5]} 5. h3 {[%clk
0:02:57.6]} 5... Bd6 {[%clk 0:02:53.6]} 6. Qf3 {[%clk 0:02:58.2]} 6... O-O
{[%clk 0:02:51.7]} 7. Ne2 {[%clk 0:02:58.7]} 7... Re8 {[%clk 0:02:46]} 8. Bg5
{[%clk 0:02:57.3]} 8... Nbd7 {[%clk 0:02:46.4]} 9. Nc3 {[%clk 0:02:54.2]} 9...
c6 {[%clk 0:02:46]} 10. O-O-O {[%clk 0:02:53.6]} 10... Qa5 {[%clk 0:02:44]} 11.
Kb1 {[%clk 0:02:47.9]} 11... b5 {[%clk 0:02:42.9]} 12. Ng3 {[%clk 0:02:41.6]}
12... b4 {[%clk 0:02:41.8]} 13. Nce2 {[%clk 0:02:42]} 13... Ba6 {[%clk 0:02:35]}
14. Nf5 {[%clk 0:02:38]} 14... Bf8 {[%clk 0:02:33.7]} 15. Neg3 {[%clk
0:01:48.2]} 15... Ne4 {[%clk 0:02:13.1]} 16. Nxe4 {[%clk 0:01:37.3]} 16... dxe4
{[%clk 0:02:14]} 17. Bxe4 {[%clk 0:01:33.3]} 17... Bc4 {[%clk 0:02:07.3]} 18. b3
{[%clk 0:01:28.5]} 18... Nb6 {[%clk 0:02:07.5]} 19. Bxc6 {[%clk 0:00:45.3]}
19... Bd5 {[%clk 0:02:02.9]} 20. Bxd5 {[%clk 0:00:41.7]} 20... Nxd5 {[%clk
0:02:01.5]} 21. Bd2 {[%clk 0:00:42]} 21... Rac8 {[%clk 0:01:58.2]} 22. Ne3
{[%clk 0:00:39.9]} 22... Nc3+ {[%clk 0:01:56.8]} 23. Bxc3 {[%clk 0:00:39.9]}
23... bxc3 {[%clk 0:01:54.7]} 24. Rd3 {[%clk 0:00:33.1]} 24... Qa3 {[%clk
0:01:48]} 25. Nd1 {[%clk 0:00:32]} 25... Re6 {[%clk 0:01:33.8]} 26. Rxc3 {[%clk
0:00:25.5]} 26... Rd8 {[%clk 0:01:27.7]} 27. Rc6 {[%clk 0:00:10.8]} 27... Rxc6
{[%clk 0:01:22.4]} 28. Qxc6 {[%clk 0:00:11.7]} 28... Rxd4 {[%clk 0:01:22.1]} 29.
Qc3 {[%clk 0:00:11.1]} 29... Rf4 {[%clk 0:01:18.9]} 30. Nb2 {[%clk 0:00:10.4]}
30... Rxf2 {[%clk 0:01:17.9]} 31. Nc4 {[%clk 0:00:09.7]} 31... Qc5 {[%clk
0:01:17.2]} 32. Re1 {[%clk 0:00:09.4]} 32... Rxg2 {[%clk 0:01:15.1]} 33. Qf3
{[%clk 0:00:08.5]} 33... Rg1 {[%clk 0:01:11.2]} 34. Rxg1 {[%clk 0:00:08.9]}
34... Qxg1+ {[%clk 0:01:11.7]} 35. Kb2 {[%clk 0:00:09.8]} 35... g6 {[%clk
0:01:11.4]} 36. a4 {[%clk 0:00:08.7]} 36... Bg7+ {[%clk 0:01:09.7]} 37. Ka3
{[%clk 0:00:09.3]} 37... Bf8+ {[%clk 0:01:05.1]} 38. Ka2 {[%clk 0:00:09.8]}
38... h5 {[%clk 0:01:05.4]} 39. Ne5 {[%clk 0:00:08.1]} 39... Bg7 {[%clk
0:00:49]} 40. Qxf7+ {[%clk 0:00:06.2]} 40... Kh7 {[%clk 0:00:49.6]} 41. Qe8
{[%clk 0:00:02.2]} 41... Qg5 {[%clk 0:00:45.4]} 42. Nd3 {[%clk 0:00:01.9]} 42...
Qf6 {[%clk 0:00:44.7]} 43. Ka3 {[%clk 0:00:02.3]} 43... Qc3 {[%clk 0:00:42.6]}
44. Qe7 {[%clk 0:00:01.6]} 44... a5 {[%clk 0:00:39.9]} 45. Qe4 {[%clk
0:00:02.2]} 45... Qa1# {[%clk 0:00:39.9]} 0-1